lending/lending_fUSD_20250409
["ID","MTS","AMOUNT","RATE_DAILY","PERIOD"]
[357616205,1744235556995,-500.0,0.00041095,2]
[357616206,1744235557005,-500.0,0.00041095,2]
[357616207,1744235557014,-500.0,0.00041095,2]
[357616208,1744235557023,-500.0,0.00041095,2]
[357616209,1744235557032,-500.0,0.00041095,2]
[357616210,1744235557041,-511.52,0.00041095,2]
[357616211,1744235557051,-686.74,0.00041095,2]
[357616212,1744235557060,-500.0,0.00041095,2]
[357616213,1744235557070,-5051.26,0.00041095,2]
[357616214,1744235557079,-500.0,0.00041095,2]
[357616215,1744235557088,-507.91,0.00041095,2]
[357616216,1744235557098,-757.52,0.00041095,2]
[357616217,1744235557108,-500.0,0.00041096,10]
[357616218,1744235557118,-150.0,0.00041096,10]
[357616219,1744235557127,-859.97,0.00041096,30]
[357616220,1744235557136,-500.0,0.00041096,30]
[357616221,1744235557146,-500.0,0.00041096,30]
[357616222,1744235557155,-500.0,0.00041096,30]
[357616223,1744235557165,-500.0,0.00041096,30]
[357616224,1744235557174,-500.0,0.00041096,30]
[357616225,1744235557183,-500.0,0.00041096,30]
[357616226,1744235557192,-500.0,0.00041096,30]
[357616227,1744235557201,-500.0,0.00041096,30]
[357616228,1744235557211,-294.0,0.00041096,30]
[357616229,1744235557220,-1110.0,0.00041096,13]
[357616230,1744235557229,-505.0,0.00041096,30]
[357616231,1744235557239,-151.0,0.00041096,14]
[357616232,1744235557248,-151.0,0.00041096,14]
[357616233,1744235557259,-151.0,0.00041096,14]
[357616234,1744235557268,-151.0,0.00041096,14]
[357616235,1744235557278,-151.0,0.00041096,14]
[357616236,1744235557287,-151.0,0.00041096,14]
[357616237,1744235557297,-151.0,0.00041096,14]
[357616238,1744235557306,-151.0,0.00041096,14]
[357616239,1744235557315,-151.0,0.00041096,14]
[357616240,1744235557325,-151.0,0.00041096,14]
[357616241,1744235557334,-151.0,0.00041096,14]
[357616242,1744235557343,-192.842246,0.00041096,14]
[357616243,1744235557353,-500.0,0.00041096,30]
[357616244,1744235557363,-500.0,0.00041096,30]
[357616245,1744235557372,-500.0,0.00041096,30]
[357616246,1744235557382,-2000.0,0.00041096,13]
[357616247,1744235557392,-2000.0,0.00041096,13]
[357616248,1744235557404,-500.0,0.00041096,30]
[357616249,1744235557413,-500.0,0.00041096,30]
[357616250,1744235557423,-500.0,0.00041096,30]
[357616251,1744235557432,-500.0,0.00041096,30]
[357616252,1744235557442,-500.0,0.00041096,30]
[357616253,1744235557451,-500.0,0.00041096,30]
[357616254,1744235557460,-600.0,0.00041096,30]
[357616255,1744235557472,-2000.0,0.00041096,13]
[357616256,1744235557483,-2000.0,0.00041096,13]
[357616257,1744235557493,-1213.0,0.00041096,13]
[357616258,1744235557502,-150.0,0.00041096,2]
[357616259,1744235557512,-2990.129,0.00041096,30]
[357616260,1744235557521,-5000.0,0.00041096,2]
[357616261,1744235557531,-500.0,0.00041096,2]
[357616262,1744235557540,-4000.0,0.000411,120]
[357616263,1744235557551,-568.0,0.0004111,120]
[357616264,1744235557560,-568.0,0.0004112,120]
[357616265,1744235557570,-500.0,0.00041123,2]
[357616266,1744235557580,-500.0,0.00041151,2]
[357616267,1744235557589,-500.0,0.00041178,2]
[357616268,1744235557598,-151.041005,0.00041198,120]
[357616269,1744235557608,-500.0,0.00041206,2]
[357616270,1744235557617,-150.0,0.00041232,30]
[357616271,1744235557627,-500.0,0.00041233,2]
[357616272,1744235557636,-342.06,0.00041238,120]
[357616273,1744235557646,-500.0,0.0004126,2]
[357616274,1744235557655,-500.0,0.00041288,2]
[357616275,1744235557664,-165.94339,0.00041288,7]
[357616276,1744235557674,-561.21559934,0.00041315,2]
[357616277,1744235557683,-737.80805392,0.00041368,120]
[357616278,1744235557691,-500.0,0.00041369,2]
[357616279,1744235557700,-1000.0,0.00041369,2]
[357616280,1744235557709,-500.0,0.00041369,2]
[357616281,1744235557718,-768.82,0.00041369,2]
[357616282,1744235557727,-1033.22,0.00041369,2]
[357616283,1744235557736,-690.19,0.00041369,2]
[357616284,1744235557745,-500.0,0.00041369,2]
[357616285,1744235557754,-500.0,0.00041369,2]
[357616286,1744235557763,-653.93,0.00041369,2]
[357616287,1744235557773,-500.0,0.00041369,2]
[357616288,1744235557782,-500.0,0.00041369,2]
[357616289,1744235557791,-500.0,0.00041369,2]
[357616290,1744235557800,-500.0,0.00041369,2]
[357616291,1744235557809,-500.0,0.00041369,2]
[357616292,1744235557818,-562.39,0.00041369,2]
[357616293,1744235557827,-500.0,0.00041369,2]
[357616294,1744235557836,-500.0,0.00041369,2]
[357616295,1744235557845,-500.0,0.00041369,2]
[357616296,1744235557854,-523.63,0.00041369,2]
[357616297,1744235557863,-575.25,0.00041369,2]
[357616298,1744235557871,-643.66,0.00041369,2]
[357616299,1744235557880,-500.0,0.00041369,2]
[357616300,1744235557889,-500.0,0.00041369,2]
[357616301,1744235557899,-517.26,0.00041369,2]
[357616302,1744235557908,-329.78620313,0.00041369,2]
[357616303,1744235557918,-509.1,0.00041369,2]
[357616304,1744235557927,-544.02,0.00041369,2]
[357616305,1744235557936,-1591.25,0.00041369,2]
[357616306,1744235557945,-463.74865423,0.00041369,2]
[357616307,1744235557954,-158.229282,0.00041369,2]
[357616308,1744235557963,-922.766495,0.00041369,2]
[357616309,1744235557972,-500.0,0.00041369,2]
[357616310,1744235557981,-500.0,0.00041369,2]
[357616311,1744235557990,-500.0,0.00041369,2]
[357616312,1744235557999,-512.21,0.00041369,2]
[357616313,1744235558008,-1481.605419,0.00041369,2]
[357616314,1744235558017,-575.18,0.00041369,2]
[357616315,1744235558027,-1103.241651,0.00041369,2]
[357616316,1744235558036,-500.0,0.00041369,2]
[357616317,1744235558045,-152.130457,0.00041369,2]
[357616318,1744235558054,-555.55,0.00041369,2]
[357616319,1744235558063,-716.17,0.00041369,2]
[357616320,1744235558072,-569.8,0.00041369,2]
[357616321,1744235558082,-500.0,0.00041369,2]
[357616322,1744235558092,-500.0,0.00041369,2]
[357616323,1744235558101,-500.0,0.00041369,2]
[357616324,1744235558110,-500.0,0.00041369,2]
[357616325,1744235558119,-500.0,0.00041369,2]
[357616326,1744235558128,-500.0,0.00041369,2]
[357616327,1744235558138,-523.55,0.00041369,2]
[357616328,1744235558147,-500.0,0.00041369,2]
[357616329,1744235558156,-500.0,0.00041369,2]
[357616330,1744235558165,-641.56,0.00041369,2]
[357616331,1744235558175,-522.12,0.00041369,2]
[357616332,1744235558184,-671.33,0.00041369,2]
[357616333,1744235558193,-500.0,0.00041369,2]
[357616334,1744235558202,-898.3,0.00041369,2]
[357616335,1744235558212,-500.0,0.00041369,2]
[357616336,1744235558221,-500.0,0.00041369,2]
[357616337,1744235558231,-500.0,0.00041369,2]
[357616338,1744235558240,-500.0,0.00041369,2]
[357616339,1744235558250,-156.788597,0.00041369,2]
[357616340,1744235558259,-1488.11,0.00041369,2]
[357616341,1744235558268,-500.0,0.00041369,2]
[357616342,1744235558384,-500.0,0.00041369,2]
[357616343,1744235558394,-1346.88,0.00041369,2]
[357616344,1744235558404,-500.0,0.00041369,2]
[357616345,1744235558414,-600.91,0.00041369,2]
[357616346,1744235558423,-500.0,0.00041369,2]
[357616347,1744235558432,-500.0,0.00041369,2]
[357616348,1744235558441,-500.0,0.00041369,2]
[357616349,1744235558451,-500.0,0.00041369,2]
[357616350,1744235558460,-1062.56,0.00041369,2]
[357616351,1744235558472,-1328.67,0.00041369,2]
[357616352,1744235558482,-1098.1,0.00041369,2]
[357616353,1744235558491,-1109.78,0.00041369,2]
[357616354,1744235558500,-500.0,0.00041369,2]
[357616355,1744235558511,-500.0,0.00041369,2]
[357616356,1744235558519,-500.0,0.00041369,2]
[357616357,1744235558528,-2058.98,0.00041369,2]
[357616358,1744235558537,-500.0,0.00041369,2]
[357616359,1744235558547,-601.54,0.00041369,2]
[357616360,1744235558556,-253.96035071,0.00041369,2]
[357616361,1744235558565,-704.15,0.00041369,2]
[357616362,1744235558575,-500.0,0.00041369,2]
[357616363,1744235558583,-441.35925906,0.00041369,2]
[357616364,1744235558592,-500.0,0.00041369,2]
[357616365,1744235558601,-1533.75,0.00041369,2]
[357616366,1744235558611,-890.15,0.00041369,2]
[357616367,1744235558619,-2033.59,0.00041369,2]
[357616368,1744235558628,-500.0,0.00041369,2]
[357616369,1744235558638,-1091.45,0.00041369,2]
[357616370,1744235558647,-998.38,0.00041369,2]
[357616371,1744235558656,-990.73,0.00041369,2]
[357616372,1744235558665,-740.02,0.00041369,2]
[357616373,1744235558674,-500.0,0.00041369,2]
[357616374,1744235558685,-840.51,0.00041369,2]
[357616375,1744235558695,-1255.28,0.00041369,2]
[357616376,1744235558704,-500.0,0.00041369,2]
[357616377,1744235558713,-628.73,0.00041369,2]
[357616378,1744235558722,-1122.08,0.00041369,2]
[357616379,1744235558732,-851.89,0.00041369,2]
[357616380,1744235558741,-500.0,0.00041369,2]
[357616381,1744235558750,-500.0,0.00041369,2]
[357616382,1744235558759,-1594.69,0.00041369,2]
[357616383,1744235558768,-846.31,0.00041369,2]
[357616384,1744235558777,-634.01,0.00041369,2]
[357616385,1744235558786,-500.0,0.00041369,2]
[357616386,1744235558795,-500.0,0.00041369,2]
[357616387,1744235558804,-1789.24,0.00041369,2]
[357616388,1744235558813,-500.0,0.00041369,2]
[357616389,1744235558822,-500.0,0.00041369,2]
[357616390,1744235558831,-500.0,0.00041369,2]
[357616391,1744235558841,-904.2,0.00041369,2]
[357616392,1744235558850,-2100.49,0.00041369,2]
[357616393,1744235558860,-648.85617726,0.00041369,2]
[357616394,1744235558869,-1008.97,0.00041369,2]
[357616395,1744235558878,-575.38,0.00041369,2]
[357616396,1744235558887,-980.91,0.00041369,2]
[357616397,1744235558897,-744.07,0.00041369,2]
[357616398,1744235558906,-500.0,0.00041369,2]
[357616399,1744235558915,-1364.94,0.00041369,2]
[357616400,1744235558929,-247.4603138,0.00041369,2]
[357616401,1744235558938,-500.0,0.00041369,2]
[357616402,1744235558947,-506.365178,0.00041369,2]
[357616403,1744235558956,-747.87,0.00041369,2]
[357616404,1744235558965,-850.11,0.00041369,2]
[357616405,1744235558974,-1247.64,0.00041369,2]
[357616406,1744235558983,-1102.32,0.00041369,2]
[357616407,1744235558992,-659.47,0.00041369,2]
[357616408,1744235559001,-588.76,0.00041369,2]
[357616409,1744235559010,-500.0,0.00041369,2]
[357616410,1744235559021,-500.0,0.00041369,2]
[357616411,1744235559030,-626.4,0.00041369,2]
[357616412,1744235559039,-500.0,0.00041369,2]
[357616413,1744235559048,-500.0,0.00041369,2]
[357616414,1744235559057,-992.17,0.00041369,2]
[357616415,1744235559066,-639.52860814,0.00041369,2]
[357616416,1744235559076,-495.58687903,0.00041369,2]
[357616417,1744235559085,-500.0,0.00041369,2]
[357616418,1744235559094,-308.18784787,0.00041369,2]
[357616419,1744235559103,-500.0,0.00041369,2]
[357616420,1744235559113,-500.0,0.00041369,2]
[357616421,1744235559122,-863.74,0.00041369,2]
[357616422,1744235559131,-669.2,0.00041369,2]
[357616423,1744235559140,-500.0,0.00041369,2]
[357616424,1744235559150,-500.2,0.00041369,2]
[357616425,1744235559159,-500.0,0.00041369,2]
[357616426,1744235559168,-500.0,0.00041369,2]
[357616427,1744235559177,-500.0,0.00041369,2]
[357616428,1744235559186,-623.22,0.00041369,2]
[357616429,1744235559195,-987.07,0.00041369,2]
[357616430,1744235559204,-500.0,0.00041369,2]
[357616431,1744235559213,-500.0,0.00041369,2]
[357616432,1744235559222,-500.0,0.00041369,2]
[357616433,1744235559231,-663.93,0.00041369,2]
[357616434,1744235559240,-500.0,0.00041369,2]
[357616435,1744235559249,-500.0,0.00041369,2]
[357616436,1744235559259,-950.19,0.00041369,2]
[357616437,1744235559268,-1150.41,0.00041369,2]
[357616438,1744235559277,-700.43,0.00041369,2]
[357616439,1744235559286,-500.0,0.00041369,2]
[357616440,1744235559295,-1196.11,0.00041369,2]
[357616441,1744235559303,-533.1,0.00041369,2]
[357616442,1744235559313,-1644.09,0.00041369,2]
[357616443,1744235559322,-500.0,0.00041369,2]
[357616444,1744235559331,-500.0,0.00041369,2]
[357616445,1744235559340,-509.54,0.00041369,2]
[357616446,1744235559350,-605.75,0.00041369,2]
[357616447,1744235559359,-872.19,0.00041369,2]
[357616448,1744235559368,-2888.05,0.00041369,2]
[357616449,1744235559378,-1530.18,0.00041369,2]
[357616450,1744235559387,-538.29,0.00041369,2]
[357616451,1744235559397,-1392.95,0.00041369,2]
[357616452,1744235559406,-529.21,0.00041369,2]
[357616453,1744235559415,-760.73,0.00041369,2]
[357616454,1744235559425,-1014.21,0.00041369,2]
[357616455,1744235559434,-728.15,0.00041369,2]
[357616456,1744235559444,-671.68,0.00041369,2]
[357616457,1744235559453,-582.4,0.00041369,2]
[357616458,1744235559463,-500.0,0.00041369,2]
[357616459,1744235559477,-600.66,0.00041369,2]
[357616460,1744235559487,-172.64064812,0.00041369,2]
[357616461,1744235559496,-905.89,0.00041369,2]
[357616462,1744235559505,-500.0,0.00041369,2]
[357616463,1744235559514,-640.01,0.00041369,120]
[357616464,1744235559524,-500.0,0.00041369,2]
[357616465,1744235559534,-600.12,0.00041369,2]
[357616466,1744235559543,-500.0,0.00041369,2]
[357616467,1744235559553,-500.0,0.00041369,2]
[357616468,1744235559562,-611.55109168,0.00041369,2]
[357616469,1744235559571,-696.24,0.00041369,2]
[357616470,1744235559580,-574.51,0.00041369,2]
[357616471,1744235559589,-621.38,0.00041369,2]
[357616472,1744235559599,-564.04,0.00041369,2]
[357616473,1744235559608,-500.0,0.00041369,2]
[357616474,1744235559617,-662.39,0.00041369,2]
[357616475,1744235559627,-1138.96,0.00041369,2]
[357616476,1744235559636,-500.0,0.00041369,2]
[357616477,1744235559646,-506.09,0.00041369,2]
[357616478,1744235559655,-593.38,0.00041369,2]
[357616479,1744235559664,-557.52,0.00041369,2]
[357616480,1744235559673,-500.0,0.00041369,2]
[357616481,1744235559683,-978.21,0.00041369,2]
[357616482,1744235559692,-500.0,0.00041369,2]
[357616483,1744235559701,-500.0,0.00041369,2]
[357616484,1744235559709,-879.62,0.00041369,2]
[357616485,1744235559719,-915.14,0.00041369,2]
[357616486,1744235559728,-972.17,0.00041369,2]
[357616487,1744235559737,-500.0,0.00041369,2]
[357616488,1744235559746,-689.1,0.00041369,2]
[357616489,1744235559755,-693.42,0.00041369,2]
[357616490,1744235559764,-500.0,0.00041369,2]
[357616491,1744235559774,-500.0,0.00041369,2]
[357616492,1744235559783,-509.59164569,0.00041369,2]
[357616493,1744235559792,-1204.18,0.00041369,2]
[357616494,1744235559802,-500.0,0.00041369,2]
[357616495,1744235559811,-2109.43,0.00041369,2]
[357616496,1744235559820,-922.86,0.00041369,2]
[357616497,1744235559829,-500.0,0.00041369,2]
[357616498,1744235559839,-500.0,0.00041369,2]
[357616499,1744235559848,-738.28,0.00041369,2]
[357616500,1744235559857,-524.33,0.00041369,2]
[357616501,1744235559866,-582.79,0.00041369,2]
[357616502,1744235559875,-500.0,0.00041369,2]
[357616503,1744235559884,-529.9,0.00041369,2]
[357616504,1744235559893,-520.25,0.00041369,2]
[357616505,1744235559904,-500.0,0.00041369,2]
[357616506,1744235559914,-500.0,0.00041369,2]
[357616507,1744235559923,-500.0,0.00041369,2]
[357616508,1744235559933,-563.51,0.00041369,2]
[357616509,1744235559942,-515.76,0.00041369,2]
[357616510,1744235559951,-1455.64,0.00041369,2]
[357616511,1744235559961,-500.0,0.00041369,2]
[357616512,1744235559970,-944.08,0.00041369,2]
[357616513,1744235559979,-1259.75,0.00041369,2]
[357616514,1744235559989,-949.83,0.00041369,2]
[357616515,1744235559998,-867.9,0.00041369,2]
[357616516,1744235560008,-712.22,0.00041369,2]
[357616517,1744235560017,-676.54,0.00041369,2]
[357616518,1744235560027,-2873.89,0.00041369,2]
[357616519,1744235560036,-865.86,0.00041369,2]
[357616520,1744235560045,-734.44,0.00041369,2]
[357616521,1744235560054,-1213.14,0.00041369,2]
[357616522,1744235560063,-500.0,0.00041369,2]
[357616523,1744235560073,-510.47,0.00041369,2]
[357616524,1744235560082,-500.0,0.00041369,2]
[357616525,1744235560091,-500.0,0.00041369,2]
[357616526,1744235560100,-1235.75,0.00041369,2]
[357616527,1744235560109,-2062.74,0.00041369,2]
[357616528,1744235560119,-500.0,0.00041369,2]
[357616529,1744235560128,-500.0,0.00041369,2]
[357616530,1744235560137,-1627.43,0.00041369,2]
[357616531,1744235560148,-779.34,0.00041369,2]
[357616532,1744235560158,-1736.3,0.00041369,2]
[357616533,1744235560167,-500.0,0.00041369,2]
[357616534,1744235560177,-500.0,0.00041369,2]
[357616535,1744235560186,-579.96,0.00041369,2]
[357616536,1744235560196,-2303.11,0.00041369,2]
[357616537,1744235560205,-21393.93,0.00041369,2]
[357616538,1744235560214,-500.0,0.00041369,2]
[357616539,1744235560224,-1487.15,0.00041369,2]
[357616540,1744235560233,-500.0,0.00041369,2]
[357616541,1744235560243,-1444.32,0.00041369,2]
[357616542,1744235560252,-531.51,0.00041369,2]
[357616543,1744235560261,-798.61,0.00041369,2]
[357616544,1744235560270,-663.86,0.00041369,2]
[357616545,1744235560280,-1448.83,0.00041369,2]
[357616546,1744235560289,-1070.68,0.00041369,2]
[357616547,1744235560298,-720.05,0.00041369,2]
[357616548,1744235560308,-4523.75,0.00041369,2]
[357616549,1744235560317,-1045.81,0.00041369,2]
[357616550,1744235560326,-2369.93,0.00041369,2]
[357616551,1744235560336,-675.07,0.00041369,2]
[357616552,1744235560345,-815.31,0.00041369,2]
[357616553,1744235560354,-680.79,0.00041369,2]
[357616554,1744235560363,-3877.45,0.00041369,2]
[357616555,1744235560373,-1072.51,0.00041369,2]
[357616556,1744235560382,-920.84,0.00041369,2]
[357616557,1744235560391,-217.90457725,0.00041369,2]
[357616558,1744235560401,-1250.82,0.00041369,2]
[357616559,1744235560410,-1683.83,0.00041369,2]
[357616560,1744235560419,-904.45,0.00041369,2]
[357616561,1744235560429,-8073.34,0.00041369,2]
[357616562,1744235560439,-951.26,0.00041369,2]
[357616563,1744235560448,-567.52,0.00041369,2]
[357616564,1744235560458,-500.0,0.00041369,2]
[357616565,1744235560469,-507.52,0.00041369,2]
[357616566,1744235560480,-714.37,0.00041369,2]
[357616567,1744235560490,-1034.56,0.00041369,2]
[357616568,1744235560499,-7044.24,0.00041369,2]
[357616569,1744235560509,-593.89,0.00041369,2]
[357616570,1744235560519,-500.0,0.00041369,2]
[357616571,1744235560529,-614.18,0.00041369,2]
[357616572,1744235560538,-1119.95,0.00041369,2]
[357616573,1744235560549,-1165.25,0.00041369,2]
[357616574,1744235560559,-1010.11,0.00041369,2]
[357616575,1744235560568,-3541.99,0.00041369,2]
[357616576,1744235560577,-2285.66,0.00041369,2]
[357616577,1744235560587,-1097.67,0.00041369,2]
[357616578,1744235560597,-1278.84,0.00041369,30]
[357616579,1744235560606,-500.0,0.00041369,2]
[357616580,1744235560616,-500.0,0.00041369,2]
[357616581,1744235560626,-500.0,0.00041369,2]
[357616582,1744235560639,-737.02,0.00041369,2]
[357616583,1744235560648,-1205.42,0.00041369,2]
[357616584,1744235560658,-622.25,0.00041369,2]
[357616585,1744235560667,-626.72,0.00041369,2]
[357616586,1744235560677,-1595.13,0.00041369,2]
[357616587,1744235560687,-1037.81,0.00041369,2]
[357616588,1744235560697,-993.54,0.00041369,2]
[357616589,1744235560706,-4569.67,0.00041369,2]
[357616590,1744235560716,-597.13,0.00041369,2]
[357616591,1744235560725,-925.07,0.00041369,2]
[357616592,1744235560736,-930.17,0.00041369,2]
[357616593,1744235560745,-500.0,0.00041369,2]
[357616594,1744235560755,-733.46,0.00041369,2]
[357616595,1744235560764,-500.0,0.00041369,2]
[357616596,1744235560774,-803.16,0.00041369,2]
[357616597,1744235560783,-1134.05,0.00041369,2]
[357616598,1744235560793,-6999.86,0.00041369,2]
[357616599,1744235560802,-500.0,0.00041369,2]
[357616600,1744235560811,-2881.42,0.00041369,2]
[357616601,1744235560821,-42423.7,0.00041369,2]
[357616602,1744235560830,-500.0,0.00041369,2]
[357616603,1744235560839,-1337.8,0.00041369,2]
[357616604,1744235560849,-1079.31,0.00041369,2]
[357616605,1744235560859,-509.05,0.00041369,2]
[357616606,1744235560869,-500.0,0.00041369,2]
[357616607,1744235560878,-173.84388367,0.00041369,2]
[357616608,1744235560888,-1032.24,0.00041369,2]
[357616609,1744235560898,-1046.49,0.00041369,2]
[357616610,1744235560908,-1965.19,0.00041369,2]
[357616611,1744235560917,-1002.75,0.00041369,2]
[357616612,1744235560927,-23770.72,0.00041369,2]
[357616613,1744235560937,-500.0,0.00041369,2]
[357616614,1744235560946,-500.0,0.00041369,2]
[357616615,1744235560956,-1158.53,0.00041369,2]
[357616616,1744235560966,-597.05660325,0.00041369,2]
[357616617,1744235560975,-2575.45,0.00041369,2]
[357616618,1744235560984,-500.0,0.00041369,2]
[357616619,1744235560994,-500.0,0.00041369,2]
[357616620,1744235561004,-500.0,0.00041369,2]
[357616621,1744235561013,-839.12,0.00041369,2]
[357616622,1744235561023,-1417.52,0.00041369,2]
[357616623,1744235561034,-375.65,0.00041369,2]
[357616624,1744235561043,-2351.29,0.00041369,2]
[357616625,1744235561053,-500.0,0.00041369,2]
[357616626,1744235561063,-925.42,0.00041369,2]
[357616627,1744235561073,-500.0,0.00041369,2]
[357616628,1744235561083,-500.0,0.00041369,2]
[357616629,1744235561092,-500.0,0.00041369,2]
[357616630,1744235561102,-4543.65,0.00041369,2]
[357616631,1744235561112,-500.0,0.00041369,2]
[357616632,1744235561122,-589.28,0.00041369,2]
[357616633,1744235561131,-500.0,0.00041369,2]
[357616634,1744235561141,-1261.56,0.00041369,2]
[357616635,1744235561152,-908.44,0.00041369,2]
[357616636,1744235561161,-867.74,0.00041369,2]
[357616637,1744235561170,-907.73,0.00041369,2]
[357616638,1744235561180,-660.09,0.00041369,2]
[357616639,1744235561190,-1190.9,0.00041369,2]
[357616640,1744235561200,-1267.15,0.00041369,2]
[357616641,1744235561210,-500.0,0.00041369,2]
[357616642,1744235561220,-4887.83,0.00041369,2]
[357616643,1744235561230,-575.82,0.00041369,2]
[357616644,1744235561240,-774.45,0.00041369,2]
[357616645,1744235561250,-2640.49,0.00041369,2]
[357616646,1744235561261,-929.61,0.00041369,2]
[357616647,1744235561270,-570.35,0.00041369,2]
[357616648,1744235561279,-1204.87,0.00041369,2]
[357616649,1744235561288,-775.07,0.00041369,2]
[357616650,1744235561297,-852.59,0.00041369,2]
[357616651,1744235561307,-535.49,0.00041369,2]
[357616652,1744235561317,-706.53,0.00041369,2]
[357616653,1744235561327,-561.8,0.00041369,2]
[357616654,1744235561337,-500.0,0.00041369,2]
[357616655,1744235561347,-1156.21,0.00041369,2]
[357616656,1744235561356,-1013.54,0.00041369,2]
[357616657,1744235561366,-1035.19,0.00041369,2]
[357616658,1744235561376,-1279.0,0.00041369,2]
[357616659,1744235561385,-846.03,0.00041369,2]
[357616660,1744235561395,-2136.41,0.00041369,2]
[357616661,1744235561405,-500.0,0.00041369,2]
[357616662,1744235561415,-4235.64,0.00041369,2]
[357616663,1744235561425,-592.54,0.00041369,2]
[357616664,1744235561435,-1028.37,0.00041369,2]
[357616665,1744235561445,-655.91,0.00041369,2]
[357616666,1744235561455,-774.63,0.00041369,2]
[357616667,1744235561466,-500.0,0.00041369,2]
[357616668,1744235561483,-668.99,0.00041369,2]
[357616669,1744235561493,-635.46,0.00041369,2]
[357616670,1744235561503,-771.42,0.00041369,2]
[357616671,1744235561513,-150.0,0.00041369,30]
[357616672,1744235561522,-500.0,0.00041369,2]
[357616673,1744235561532,-500.0,0.00041369,2]
[357616674,1744235561541,-500.0,0.00041369,2]
[357616675,1744235561551,-631.73,0.00041369,2]
[357616676,1744235561561,-406.04667631,0.00041369,2]
[357616677,1744235561571,-1805.21,0.00041369,2]
[357616678,1744235561580,-500.0,0.00041369,2]
[357616679,1744235561590,-500.0,0.00041369,2]
[357616680,1744235561600,-2082.58,0.00041369,2]
[357616681,1744235561610,-950.96,0.00041369,2]
[357616682,1744235561620,-548.27,0.00041369,2]
[357616683,1744235561630,-777.86,0.00041369,2]
[357616684,1744235561640,-500.0,0.00041369,2]
[357616685,1744235561650,-720.17,0.00041369,2]
[357616686,1744235561660,-1059.64,0.00041369,2]
[357616687,1744235561670,-587.39,0.00041369,2]
[357616688,1744235561680,-1208.61,0.00041369,2]
[357616689,1744235561689,-174266.75,0.00041369,2]
[357616690,1744235561699,-1106.78,0.00041369,2]
[357616691,1744235561710,-1260.1,0.00041369,2]
[357616692,1744235561720,-500.0,0.00041369,2]
[357616693,1744235561730,-738.67,0.00041369,2]
[357616694,1744235561740,-1252.62,0.00041369,2]
[357616695,1744235561750,-500.0,0.00041369,2]
[357616696,1744235561760,-1523.75,0.00041369,2]
[357616697,1744235561770,-818.49,0.00041369,2]
[357616698,1744235561780,-1179.84,0.00041369,2]
[357616699,1744235561791,-1025.1,0.00041369,2]
[357616700,1744235561801,-397.11235679,0.00041369,2]
[357616701,1744235561810,-2893.36,0.00041369,2]
[357616702,1744235561820,-764.1,0.00041369,2]
[357616703,1744235561830,-21329.92,0.00041369,2]
[357616704,1744235561839,-707.54,0.00041369,2]